bitfinex/quotes_ETHUSD_20251111
["timestamp","ask_amount","ask_price","bid_price","bid_amount"]
[1762905315397,0.002,3418.6,3418.5,0.4802]
[1762905315600,0.002,3418.6,3418.5,6.12080441]
[1762905316237,0.002,3418.6,3418.5,5.41980441]
[1762905316412,0.002,3418.6,3418.5,6.51004719]
[1762905317335,0.002,3418.6,3418.5,6.12080441]
[1762905317535,0.002,3418.6,3418.5,7.04407707]
[1762905319345,0.002,3419.0,3418.9,2.92491737]
[1762905319544,0.002,3419.0,3418.9,5.23985817]
[1762905319744,0.002,3419.0,3418.9,6.53895412]
[1762905319947,0.002,3419.0,3418.9,6.50970495]
[1762905320146,0.002,3419.8,3419.7,2.92423311]
[1762905320355,0.002,3419.8,3419.7,6.11977791]
[1762905321449,0.002,3419.8,3419.2,0.1865]
[1762905321450,0.422,3419.8,3418.9,1.23598935]
[1762905321667,0.422,3419.8,3418.8,0.6616]
[1762905321668,0.5,3419.6,3419.0,0.701]
[1762905321810,0.5,3419.6,3419.2,2.9246382]
[1762905322162,0.1858,3419.8,3419.4,2.92448541]
[1762905322317,0.002,3419.8,3419.7,2.92423311]
[1762905322514,0.002,3419.8,3419.6,0.701]
[1762905322710,0.002,3419.8,3419.0,1.1337408]
[1762905322711,0.5,3419.6,3419.0,1.1337408]
[1762905322937,0.056,3419.5,3419.1,0.701]
[1762905323241,0.056,3419.5,3419.2,0.701]
[1762905323242,0.5,3419.3,3419.2,0.701]
[1762905323636,0.5,3419.3,3418.8,0.592004]
[1762905323836,0.5,3419.3,3419.0,2.92483182]
[1762905324022,0.5,3419.5,3419.0,1.1337408]
[1762905324423,0.5,3419.5,3419.2,2.92464224]
[1762905324630,0.5,3419.5,3419.3,0.701]
[1762905325113,0.502,3419.5,3419.3,0.701]
[1762905325314,0.056,3419.4,3419.1,0.001]
[1762905325513,0.056,3419.4,3419.1,0.702]
[1762905325514,0.5603,3419.2,3419.1,0.702]
[1762905325915,1e-08,3420.5,3420.4,3.77973866]
[1762905326116,1.56193665,3422.4,3420.4,3.77973866]
[1762905326117,0.62193132,3422.1,3421.7,2.92252389]
[1762905326316,0.45851811,3422.0,3421.9,2.92235307]
[1762905326557,0.1941,3422.6,3422.3,2.92200417]
[1762905326775,0.1941,3422.6,3422.4,2.92187453]
[1762905327554,0.1941,3422.6,3422.5,2.92184075]
[1762905327753,0.1941,3422.6,3422.2,0.706]
[1762905327955,0.691,3422.6,3422.2,2.9220811]
[1762905328175,0.691,3422.6,3422.3,3.62800321]
[1762905328375,0.691,3422.6,3422.5,2.92184075]
[1762905328847,0.4945,3423.1,3422.7,2.92162067]
[1762905329173,0.002,3423.1,3423.0,2.92141396]
[1762905331173,0.002,3423.1,3423.0,2.95062809]
[1762905331385,0.002,3423.1,3423.0,2.92141396]
[1762905331689,0.002,3423.1,3423.0,4.27363209]
[1762905331847,0.002,3423.1,3423.0,5.40737289]
[1762905332866,0.002,3423.1,3423.0,5.37815876]
[1762905333067,0.002,3423.1,3423.0,6.91994498]
[1762905335354,0.002,3423.1,3423.0,21.41994498]
[1762905335950,0.002,3423.1,3423.0,15.6337408]
[1762905336181,0.002,3423.1,3423.0,18.12541396]
[1762905336383,0.002,3423.1,3423.0,19.25915476]
[1762905337176,0.002,3423.1,3423.0,20.17665476]
[1762905337392,0.002,3423.1,3423.0,20.58215876]
[1762905337689,0.002,3423.1,3423.0,23.47371109]
[1762905338696,1e-08,3423.5,3423.4,4.91091741]
[1762905338855,1e-08,3423.5,3423.4,12.02810329]
[1762905339061,0.002,3423.8,3423.7,3.32632066]
[1762905339369,0.002,3423.8,3423.7,20.11466146]
[1762905339569,0.002,3423.8,3423.7,22.38367672]
[1762905341262,0.1946,3425.2,3424.1,2.92047545]
[1762905341465,0.1946,3425.2,3424.1,4.6931842]
[1762905341704,0.1946,3425.2,3424.1,5.13087945]
[1762905341904,0.1736,3424.8,3424.1,19.66272025]
[1762905342127,0.1736,3424.8,3424.1,20.80084269]
[1762905342708,0.1946,3425.2,3424.1,21.71834269]
[1762905344796,0.1946,3425.2,3424.1,24.80534269]
[1762905345117,0.1946,3425.2,3424.1,21.71834269]
[1762905346018,0.1736,3424.9,3424.1,21.71834269]
[1762905346193,0.6915,3425.2,3424.1,21.71834269]
[1762905346620,0.1736,3424.9,3424.1,20.09784269]
[1762905346798,0.4969,3424.8,3424.1,20.09784269]
[1762905346993,0.4969,3424.8,3424.1,20.79984269]
[1762905348325,0.4969,3424.8,3424.1,20.09784269]
[1762905348495,0.4969,3424.8,3424.1,20.79884269]
[1762905348698,0.4969,3424.8,3424.1,20.09784269]
[1762905348905,0.4969,3424.8,3424.1,20.79884269]
[1762905349523,0.4969,3424.8,3424.1,20.09784269]
[1762905349708,0.0546,3424.2,3424.1,20.79884269]
[1762905350309,0.002,3424.2,3424.1,20.79884269]
[1762905350622,0.059,3424.2,3424.1,20.39333869]
[1762905351387,0.059,3424.2,3424.1,19.69233869]
[1762905351722,0.059,3424.2,3424.1,20.39233869]
[1762905352229,0.5471,3424.2,3424.1,16.77186324]
[1762905352387,0.002,3424.2,3424.1,19.25859789]
[1762905352592,0.002,3424.2,3424.1,27.84602857]
[1762905352801,0.002,3424.2,3424.1,28.31292857]
[1762905356298,0.002,3424.2,3424.1,20.54844269]
[1762905356625,0.002,3424.2,3424.1,20.79784269]
[1762905356997,0.002,3424.2,3424.1,21.27544269]
[1762905357198,0.002,3424.2,3424.1,21.73324269]
[1762905359115,0.002,3424.2,3424.1,21.03324269]
[1762905359317,0.002,3424.2,3424.1,21.73324269]
[1762905360236,1e-08,3424.5,3424.1,21.73324269]
[1762905360463,1e-08,3424.5,3424.4,4.9302644]
[1762905360599,0.1833,3425.4,3425.3,2.91945231]
[1762905360941,0.1833,3425.4,3425.3,18.11945231]
[1762905360942,0.2471,3425.4,3425.3,18.11945231]
[1762905361122,0.87461694,3425.4,3425.3,18.11945231]
[1762905361498,0.2471,3425.4,3425.3,18.11945231]
[1762905362151,1.26915061,3426.0,3425.9,2.918941]
[1762905362437,0.27236054,3426.0,3425.9,3.618941]
[1762905362622,1.94675138,3426.0,3425.9,0.7]
[1762905362801,1.44675138,3426.0,3425.9,18.118941]
[1762905363001,0.96375138,3426.0,3425.9,18.118941]
[1762905364044,1.44675138,3426.0,3425.9,14.5]
[1762905364232,0.96375138,3426.0,3425.9,17.418941]
[1762905364406,0.96375138,3426.0,3425.9,19.22105626]
[1762905364605,0.27236054,3426.0,3425.9,19.62656026]
[1762905364805,0.1833,3426.3,3426.2,2.91868542]
[1762905365035,1.0830207,3426.3,3426.2,3.61868542]
[1762905365236,0.5,3426.2,3425.3,0.42617107]
[1762905365534,0.89942672,3426.1,3426.0,2.91878232]
[1762905365740,1.44822672,3426.1,3426.0,18.11878232]
[1762905366143,0.96522672,3426.1,3426.0,18.11878232]
[1762905366340,0.33802643,3426.1,3426.0,18.1188558]
[1762905366529,1.44832783,3426.1,3426.0,18.1188558]
[1762905367538,1.94832783,3426.1,3426.0,18.1188558]
[1762905367742,1.44832783,3426.1,3426.0,18.1188558]
[1762905368128,0.89952783,3426.1,3426.0,18.1188558]
[1762905368328,0.1833,3426.3,3426.2,2.91868542]
[1762905368520,1.08336722,3426.3,3426.2,2.91868542]
[1762905368723,1.15326722,3426.3,3426.2,2.91868542]
[1762905368922,0.96575061,3427.0,3426.9,2.91808923]
[1762905369243,1.08414538,3427.0,3426.9,2.91808923]
[1762905369442,1.14994538,3427.0,3426.9,17.41808923]
[1762905371026,1.14994538,3427.0,3426.9,14.5]
[1762905371247,1.63294538,3427.0,3426.9,17.41808923]
[1762905371665,1.63294538,3427.0,3426.9,14.5]
[1762905371898,2.42443498,3427.0,3426.9,14.5]
[1762905372099,0.5,3426.2,3425.4,0.17581119]
[1762905372391,0.5,3425.9,3425.8,2.91901172]
[1762905372902,1.50349372,3425.9,3425.0,2.91970802]
[1762905373110,0.5,3425.6,3425.4,2.91929214]
[1762905373261,0.5,3425.6,3425.5,2.91928185]
[1762905373611,1.25917733,3425.6,3425.5,17.41928185]
[1762905373887,1.32497733,3425.6,3425.5,17.41928185]
[1762905374101,1.32497733,3425.6,3425.5,14.5]
[1762905374256,0.82497733,3425.6,3425.5,14.5]
[1762905374463,0.82497733,3425.6,3425.5,17.41928185]
[1762905374660,0.33777733,3425.6,3425.5,14.5]
[1762905374993,0.5531,3425.6,3425.5,14.5]
[1762905375196,1.0531,3425.6,3425.5,14.5]
[1762905375367,1.0531,3425.6,3425.5,17.41928185]
[1762905376070,1.0531,3425.6,3425.5,14.5]
[1762905376483,1.0531,3425.6,3425.5,17.41928185]
[1762905376880,0.1833,3425.8,3425.7,2.91911142]
[1762905377193,0.4552468,3425.8,3425.7,2.91911142]
[1762905377400,0.6265774,3426.0,3425.9,2.918941]
[1762905377556,0.5621,3426.2,3426.1,2.91877061]
[1762905377756,0.77198331,3426.2,3426.1,2.91877061]
[1762905377973,0.83778331,3426.2,3426.1,2.91877061]
[1762905378177,0.27198331,3426.2,3426.1,2.91877061]
[1762905378357,0.0658,3426.2,3426.1,2.91877061]
[1762905378770,0.0658,3426.2,3426.1,17.41877061]
[1762905379200,0.5488,3426.2,3426.1,14.5]
[1762905379412,0.5488,3426.2,3426.1,15.2]
[1762905379583,0.5488,3426.2,3426.1,18.11877061]
[1762905379584,0.0658,3426.2,3426.1,18.11877061]
[1762905380608,0.002,3426.5,3426.4,2.91851505]
[1762905380814,0.27412646,3426.5,3426.4,2.91851505]
[1762905381024,0.002,3426.5,3426.4,2.91851505]
[1762905381319,1.0551,3426.5,3426.4,2.91851505]
[1762905381523,0.5,3426.4,3426.1,15.2]
[1762905381696,0.4872,3426.3,3426.2,2.91861306]
[1762905381876,0.0658,3426.2,3426.1,18.11874737]
[1762905384816,0.002,3426.5,3426.4,2.91851505]
[1762905385312,0.0719,3426.5,3426.4,2.91851505]
[1762905386302,0.0719,3426.5,3426.1,17.30376768]
[1762905386303,0.5397,3426.5,3426.3,2.91858417]
[1762905386509,0.085,3426.2,3426.1,14.5]
[1762905386713,0.085,3426.2,3426.1,17.41875405]
[1762905386928,0.9698,3426.5,3426.4,2.91851505]
[1762905387316,1.0548,3426.5,3426.4,2.91851505]
[1762905387627,0.002,3426.5,3426.4,2.91851505]
[1762905387834,0.002,3426.5,3426.4,5.04141702]
[1762905388338,0.002,3426.5,3426.4,5.99211702]
[1762905388494,0.002,3426.5,3426.4,3.37061505]
[1762905388694,0.002,3426.5,3426.4,17.87061505]
[1762905389609,0.087,3426.5,3426.4,17.41851505]
[1762905389929,0.551,3426.5,3426.4,18.11751505]
[1762905390229,0.087,3426.5,3426.4,18.11751505]
[1762905390634,0.551,3426.5,3426.4,14.5]
[1762905390937,0.5,3425.2,3424.5,0.001]
[1762905391236,0.8236885,3426.5,3424.5,0.001]
[1762905391237,1.1331,3424.6,3424.5,0.001]
[1762905391534,1.1331,3424.6,3424.1,0.001]
[1762905391535,0.9054764,3424.6,3424.1,0.001]
[1762905391733,0.6917,3424.2,3424.1,0.001]
[1762905391931,0.5,3424.5,3424.1,2.92147545]
[1762905392141,0.5,3424.5,3424.3,2.92028641]
[1762905392296,0.6558,3425.0,3424.4,2.9202196]
[1762905392490,0.6558,3425.0,3424.6,2.92004905]
[1762905392710,0.5,3424.9,3424.8,2.91987161]
[1762905392918,0.5,3424.9,3424.8,2.91987853]
[1762905393122,0.5814,3424.9,3424.8,2.91987853]
[1762905393530,1.0453,3424.9,3424.7,2.91995955]
[1762905393736,1.0453,3424.9,3424.6,0.699]
[1762905393935,1.0453,3424.9,3424.7,2.91989835]
[1762905394155,0.5,3424.6,3424.5,14.5]
[1762905394365,0.5768,3424.6,3424.5,14.5]
[1762905394565,1.44104788,3424.6,3424.5,14.5]
[1762905394748,3.42039016,3424.2,3424.1,0.001]
[1762905395251,1.0453,3424.2,3424.1,0.001]
[1762905395452,3.96569016,3424.2,3424.1,0.001]
[1762905395655,1.0453,3424.2,3424.1,0.001]
[1762905396436,0.0814,3424.2,3424.1,2.92147545]
[1762905396725,0.5,3424.3,3424.2,2.92039016]
[1762905396930,0.4678,3424.9,3424.1,0.001]
[1762905397263,0.5,3424.5,3424.4,2.9202196]
[1762905397475,0.5,3424.5,3424.4,17.4202196]
[1762905397680,0.4678,3424.9,3424.7,2.9199582]
[1762905397681,0.5,3424.8,3424.7,2.9199582]
[1762905397841,0.0814,3424.5,3424.4,14.5]
[1762905398026,0.5814,3424.5,3424.4,14.5]
[1762905398231,1.0453,3424.5,3424.4,14.5]
[1762905398670,0.5,3424.5,3424.4,17.4202196]
[1762905398966,0.0852,3424.5,3424.4,14.5]
[1762905399129,0.5852,3424.5,3424.4,14.5]
[1762905399466,0.5,3424.5,3424.4,17.4202196]
[1762905399665,0.5,3424.5,3424.4,14.5]
[1762905399969,1.0427,3424.5,3424.4,14.5]
[1762905400554,1.0427,3424.5,3424.1,0.001]
[1762905400763,0.5072,3424.2,3424.1,0.001]
[1762905401282,1.34911529,3424.2,3424.1,0.001]
[1762905401478,3.88139016,3424.2,3424.1,0.001]
[1762905405592,0.961,3424.2,3424.1,0.001]
[1762905406461,3.88139016,3424.2,3424.1,0.001]
[1762905407374,0.961,3424.2,3424.1,0.001]
[1762905407698,0.5072,3424.2,3424.1,0.001]
[1762905407859,0.961,3424.2,3424.1,0.001]
[1762905408061,3.88139016,3424.2,3424.1,0.001]
[1762905408899,4.5615532,3424.2,3424.1,0.001]
[1762905412497,1.64116304,3424.2,3424.1,0.001]
[1762905412697,3.88139016,3424.2,3424.1,0.001]
[1762905414390,5.28608594,3424.2,3424.1,0.001]
[1762905415280,5.91060969,3424.2,3424.1,0.001]
[1762905416513,5.30368594,3424.2,3424.1,0.001]
[1762905417166,5.92903363,3424.2,3424.1,0.001]
[1762905417362,7.44258448,3424.2,3424.1,0.001]
[1762905417566,7.90072929,3424.2,3424.1,0.001]
[1762905418189,8.68591109,3424.2,3424.1,0.001]
[1762905419069,7.90072929,3424.2,3424.1,0.001]
[1762905419269,8.94763835,3424.2,3424.1,0.001]
[1762905419877,7.90072929,3424.2,3424.1,0.001]
[1762905420392,4.55438684,3423.9,3423.8,0.001]
[1762905420605,14.5690912,3423.9,3423.8,0.001]
[1762905420772,15.0435912,3423.9,3423.8,0.001]
[1762905421468,13.99710045,3423.9,3423.8,0.001]
[1762905421687,15.56746405,3423.9,3423.8,0.001]
[1762905421886,13.99710045,3423.9,3423.8,0.001]
[1762905422104,15.56610063,3423.9,3423.8,0.001]
[1762905423274,13.99710045,3423.9,3423.8,0.001]
[1762905423769,7.05261905,3423.9,3423.8,0.001]
[1762905423973,8.0986404,3423.9,3423.8,0.001]
[1762905424172,8.5739404,3423.9,3423.8,0.001]
[1762905425092,7.52791905,3423.9,3423.8,0.001]
[1762905426225,8.5739404,3423.9,3423.8,0.001]
[1762905426379,4.55447215,3423.8,3423.7,0.001]
[1762905426708,9.75339393,3423.8,3423.7,0.001]
[1762905427006,4.55472809,3423.5,3423.4,0.001]
[1762905427216,12.22251216,3423.5,3423.4,0.001]
[1762905427371,14.73086426,3423.5,3423.4,0.001]
[1762905427713,13.68486345,3423.5,3423.4,0.001]
[1762905427899,14.14304688,3423.5,3423.4,0.001]
[1762905428275,14.20794688,3423.5,3423.4,0.001]
[1762905429103,14.79576426,3423.5,3423.4,0.001]
[1762905429776,15.31838809,3423.5,3423.4,0.001]
[1762905430004,7.39868205,3423.5,3423.4,0.001]
[1762905430203,7.46358205,3423.5,3423.4,0.001]
[1762905430405,13.74976345,3423.5,3423.4,0.001]
[1762905430713,3.42124328,3423.2,3423.1,0.001]
[1762905430914,14.40487792,3423.2,3423.1,0.001]
[1762905431115,5.08793356,3423.2,3423.1,0.001]
[1762905431415,6.9829066,3423.2,3423.1,0.001]
[1762905431577,7.0478066,3423.2,3423.1,0.001]
[1762905431776,6.00148675,3423.2,3423.1,0.001]
[1762905434117,7.04723778,3423.2,3423.1,0.001]
[1762905435486,2.53004347,3423.2,3423.1,0.6817]
[1762905435712,2.53004347,3423.2,3423.1,1.159]
[1762905435713,5.45128675,3423.2,3423.1,1.159]
[1762905435949,5.45128675,3423.2,3423.1,0.4902]
[1762905436350,1.39630267,3423.2,3423.1,0.9675]
[1762905437359,4.31754595,3423.2,3423.1,0.4902]
[1762905437529,5.01974571,3423.2,3423.1,0.001]
[1762905438434,5.09064571,3423.2,3423.1,0.001]
[1762905438761,6.69948651,3423.2,3423.1,0.001]
[1762905438961,7.0087132,3423.2,3423.1,0.001]
[1762905439183,6.9378132,3423.2,3423.1,1.159]
[1762905439460,6.9378132,3423.2,3423.1,0.4902]
[1762905440239,2.18062936,3423.2,3423.1,0.9675]
[1762905440441,1.39630267,3423.2,3423.1,0.9675]
[1762905440931,4.31754595,3423.2,3423.1,0.9675]
[1762905441259,4.31754595,3423.2,3423.1,0.001]
[1762905441423,6.13427225,3423.2,3423.1,0.001]
[1762905441622,7.74311305,3423.2,3423.1,0.001]
[1762905441826,6.95878636,3423.2,3423.1,0.001]
[1762905442763,7.45853739,3423.2,3423.1,0.001]
[1762905442967,6.41278636,3423.2,3423.1,0.001]
[1762905443950,6.41278636,3423.2,3423.1,0.4902]
[1762905444252,2.18156367,3423.2,3423.1,0.4902]
[1762905444463,2.18156367,3423.2,3423.1,1.159]
[1762905444647,1.39630267,3423.2,3423.1,1.159]
[1762905445025,4.31754595,3423.2,3423.1,1.159]
[1762905445549,4.38844595,3423.2,3423.1,0.001]
[1762905445757,5.88388334,3423.2,3423.1,0.001]
[1762905445932,5.40878334,3423.2,3423.1,0.001]
[1762905446131,5.33788334,3423.2,3423.1,0.001]
[1762905446355,2.41664006,3423.2,3423.1,0.001]
[1762905446634,5.33788334,3423.2,3423.1,0.001]
[1762905447163,5.41288334,3423.2,3423.1,0.001]
[1762905447663,2.41664006,3423.2,3423.1,0.001]
[1762905447832,5.3411777,3423.2,3423.1,0.4574]
[1762905448428,5.3411777,3423.2,3423.1,0.001]
[1762905448634,5.4127777,3423.2,3423.1,0.001]
[1762905449053,5.3411777,3423.2,3423.1,0.001]
[1762905449772,6.5465185,3423.2,3423.1,0.001]
[1762905450063,7.33232106,3423.2,3423.1,0.001]
[1762905450365,7.33232106,3423.2,3423.1,1.1495]
[1762905450366,1.39959703,3423.2,3423.1,1.1495]
[1762905450852,4.32084031,3423.2,3423.1,0.6516]
[1762905451994,4.32084031,3423.2,3423.1,0.4574]
[1762905452200,4.86694031,3423.2,3423.1,0.001]
[1762905452353,6.96285509,3423.2,3423.1,0.001]
[1762905452557,8.00860612,3423.2,3423.1,0.001]
[1762905452995,6.48835509,3423.2,3423.1,0.001]
[1762905453157,7.53702673,3423.2,3423.1,0.001]
[1762905454602,6.96285509,3423.2,3423.1,0.001]
[1762905455698,4.55506942,3423.1,3423.0,0.001]
[1762905455866,8.0563752,3423.1,3423.0,0.001]
[1762905456060,8.1279752,3423.1,3423.0,0.001]
[1762905459363,7.6493752,3423.1,3423.0,0.001]
[1762905459772,8.1112752,3423.1,3423.0,0.001]
[1762905460592,8.56962388,3423.1,3423.0,0.001]
[1762905464588,8.10772388,3423.1,3423.0,0.001]
[1762905465193,8.03803279,3423.1,3423.0,0.001]
[1762905465823,8.58423279,3423.1,3423.0,0.001]
[1762905468342,8.03803279,3423.1,3423.0,0.4601]
[1762905468527,9.17413135,3423.1,3423.0,0.001]
[1762905468931,9.63223135,3423.1,3423.0,0.001]
[1762905470401,9.17413135,3423.1,3423.0,0.001]
[1762905470813,8.71578267,3423.1,3423.0,0.001]
[1762905471212,7.66778411,3423.1,3423.0,0.001]
[1762905471547,8.71583701,3423.1,3423.0,0.001]
[1762905471847,8.62773701,3423.1,3423.0,0.001]
[1762905472622,8.71953701,3423.1,3423.0,0.001]
[1762905474062,9.17787388,3423.1,3423.0,0.001]
[1762905474762,8.12982098,3423.1,3423.0,0.001]
[1762905475647,8.03802098,3423.1,3423.0,0.001]
[1762905475858,9.08641602,3423.1,3423.0,0.001]
[1762905476060,9.08641602,3423.1,3423.0,0.4735]
[1762905476264,9.08658907,3423.1,3423.0,0.4735]
[1762905477001,9.08658907,3423.1,3423.0,0.001]
[1762905477666,9.15688907,3423.1,3423.0,0.001]
[1762905478076,9.15688907,3423.1,3422.6,1e-08]
[1762905478077,4.73811082,3422.7,3422.6,1e-08]
[1762905478289,7.02979768,3422.7,3422.6,1e-08]
[1762905478438,5.52631676,3422.7,3422.6,1e-08]
[1762905478641,7.98159841,3422.7,3422.6,1e-08]
[1762905478833,6.40872076,3422.7,3422.6,1e-08]
[1762905479033,8.47827503,3422.7,3422.6,1e-08]
[1762905480798,5.45691676,3422.7,3422.6,0.92750001]
[1762905481002,2.53524674,3422.7,3422.6,0.92750001]
[1762905481184,6.24399121,3422.7,3422.6,0.92750001]
[1762905481383,1.40150594,3422.7,3422.6,0.92750001]
[1762905481561,0.77286389,3422.7,3422.6,4.234296]
[1762905481761,0.77286389,3422.7,3422.6,1.31254061]
[1762905481974,0.77286389,3422.7,3422.6,18.3492554]
[1762905482186,0.77286389,3422.7,3422.6,15.42750001]
[1762905483095,0.77286389,3422.7,3422.6,18.3492554]
[1762905483660,0.77286389,3422.7,3422.6,15.42750001]
[1762905484298,0.77286389,3422.7,3422.6,18.3492554]
[1762905484678,0.77286389,3422.7,3422.6,15.42750001]
[1762905485089,0.77286389,3422.7,3422.6,18.3492554]
[1762905485398,0.77286389,3422.7,3422.6,15.42750001]
[1762905485601,0.77286389,3422.7,3422.6,18.3492554]
[1762905485765,0.77286389,3422.7,3422.6,15.42750001]
[1762905486201,0.77286389,3422.7,3422.6,18.3492554]
[1762905487300,0.77332829,3422.7,3422.6,18.3492554]
[1762905487604,3.69499831,3422.7,3422.6,14.96140001]
[1762905487899,3.69499831,3422.7,3422.6,0.92750001]
[1762905487900,1.43498592,3422.7,3422.6,0.92750001]
[1762905488106,0.77332829,3422.7,3422.6,0.92750001]
[1762905488335,0.77332829,3422.7,3422.6,15.42750001]
[1762905488620,0.77332829,3422.7,3422.6,18.3492554]
[1762905489182,0.77332829,3422.7,3422.6,15.42750001]
[1762905490021,0.77332829,3422.7,3422.6,18.3492554]
[1762905491924,0.5,3422.7,3422.6,20.47646643]
[1762905492690,0.5,3422.7,3422.6,14.96140001]
[1762905492893,0.7732084,3422.7,3422.6,15.42750001]
[1762905493890,0.7732084,3422.7,3422.6,14.96140001]
[1762905494324,0.7732084,3422.7,3422.6,15.42750001]
[1762905494534,0.7732084,3422.7,3422.6,18.3492554]
[1762905494697,0.7732084,3422.7,3422.6,15.42750001]
[1762905495527,3.69487842,3422.7,3422.6,14.50000001]
[1762905495738,0.7732084,3422.7,3422.6,14.50000001]
[1762905495968,1.43485224,3422.7,3422.6,14.50000001]
[1762905496129,0.7732084,3422.7,3422.6,18.3492554]
[1762905496656,0.7732084,3422.7,3422.6,15.42750001]
[1762905496859,0.7732084,3422.7,3422.6,18.3492554]
[1762905498058,0.7732084,3422.7,3422.6,15.42750001]
[1762905498727,5.39156268,3422.7,3422.6,14.96140001]
[1762905498933,6.22286242,3422.7,3422.6,14.96140001]
[1762905499342,9.14453244,3422.7,3422.6,14.96140001]
[1762905499516,1.60450814,3422.7,3422.6,15.42750001]
[1762905499720,0.7732084,3422.7,3422.6,15.42750001]
[1762905502051,0.7732084,3422.7,3422.6,18.3492554]
[1762905503050,0.7732084,3422.7,3422.6,15.42750001]
[1762905504961,0.7732084,3422.7,3422.6,14.96140001]
[1762905505259,0.7752084,3422.7,3422.6,14.96140001]
[1762905505560,0.7752084,3422.7,3422.6,15.42750001]
[1762905506837,5.97814118,3422.7,3422.6,1e-08]
[1762905507044,7.45968572,3422.7,3422.6,1e-08]
[1762905509361,6.67261127,3422.7,3422.6,1e-08]
[1762905509960,7.72148765,3422.7,3422.6,1e-08]
[1762905510159,6.67261127,3422.7,3422.6,1e-08]
[1762905512865,7.72179886,3422.7,3422.6,1e-08]
[1762905514738,7.07811527,3422.7,3422.6,1e-08]
[1762905515082,4.96108555,3422.5,3422.4,0.001]
[1762905515246,12.6536923,3422.5,3422.4,0.001]
[1762905515568,13.76644625,3422.5,3422.4,0.001]
[1762905515868,13.88357398,3422.5,3422.4,0.001]
[1762905516067,13.47806998,3422.5,3422.4,0.001]
[1762905516246,15.44511743,3422.5,3422.4,0.001]
[1762905517967,15.90353799,3422.5,3422.4,0.001]
[1762905518862,14.85558404,3422.5,3422.4,0.001]
[1762905520086,16.30793892,3422.5,3422.4,0.001]
[1762905520383,15.26108804,3422.5,3422.4,0.001]
[1762905521143,16.83306702,3422.5,3422.4,0.001]
[1762905521932,16.83306702,3422.5,3421.9,0.001]
[1762905521933,3.32768628,3422.1,3422.0,0.001]
[1762905522268,12.16833383,3422.1,3422.0,0.001]
[1762905522469,12.71883383,3422.1,3422.0,0.001]
[1762905522640,13.37803383,3422.1,3422.0,0.001]
[1762905522835,16.32201585,3422.1,3422.0,0.001]
[1762905523170,16.32201585,3422.1,3421.9,0.001]
[1762905523171,4.96151247,3422.0,3421.9,0.001]
[1762905523385,2.92337825,3420.7,3420.6,0.4687]
[1762905523583,2.92337825,3420.7,3420.6,0.001]
[1762905523584,8.31942539,3420.7,3420.6,0.001]
[1762905523736,3.69542025,3420.7,3420.6,0.4724]
[1762905524084,4.82916105,3420.7,3420.6,0.9401]
[1762905524435,1.9057828,3420.7,3420.6,0.9401]
[1762905524636,4.82916105,3420.7,3420.6,0.9401]
[1762905525633,1.9057828,3420.7,3420.6,0.9401]
[1762905525868,4.82916105,3420.7,3420.6,0.9401]
[1762905526898,1.9057828,3420.7,3420.6,0.9401]
[1762905527207,4.82916105,3420.7,3420.6,0.9401]
[1762905527403,1.9057828,3420.7,3420.6,0.9401]
[1762905527708,1.9057828,3420.7,3420.6,15.4401]
[1762905528213,0.5,3420.7,3420.6,15.4401]
[1762905529392,0.5,3420.7,3420.6,18.36356371]
[1762905529623,0.5,3420.7,3420.6,15.4401]
[1762905529794,0.5,3420.7,3420.6,18.36356371]
[1762905530195,0.5,3420.7,3420.6,15.4401]
[1762905530777,0.5,3420.7,3420.6,14.9724]
[1762905531408,0.5,3420.7,3420.6,15.4401]
[1762905532407,0.5,3420.7,3420.6,20.20003712]
[1762905532912,0.5,3420.7,3420.6,17.27657341]
[1762905533082,0.5,3420.7,3420.6,15.4401]
[1762905533290,0.5,3420.7,3420.6,18.36356371]
[1762905534211,5.40768777,3421.8,3420.7,2.92329834]
[1762905534418,0.27190664,3421.7,3421.6,2.9226093]
[1762905534614,0.78368263,3422.2,3422.1,0.1829]
[1762905534615,2.92211463,3422.2,3422.1,0.1829]
[1762905534794,4.32065065,3422.2,3422.1,0.6543]
[1762905534990,5.45439145,3422.2,3422.1,0.4714]
[1762905535318,6.29202998,3422.2,3422.1,0.4714]
[1762905535833,2.92263405,3421.6,3421.4,14.5]
[1762905535981,2.26797455,3422.2,3421.4,14.978]
[1762905535982,0.5,3421.5,3421.4,14.978]
[1762905536185,0.7722015,3421.5,3421.4,15.4656]
[1762905536895,0.5,3421.5,3421.4,14.9876]
[1762905537079,0.77219933,3421.5,3421.4,14.9876]
[1762905537526,0.77219933,3421.5,3421.4,15.4656]
[1762905540192,0.77219933,3421.5,3421.4,14.9876]
[1762905540505,0.77219933,3421.5,3421.4,15.4549]
[1762905541138,0.77219933,3421.5,3421.4,14.9876]
[1762905541346,0.77219933,3421.5,3421.4,19.92317014]
[1762905541663,0.002,3421.7,3421.6,2.9226093]
[1762905541840,0.002,3421.7,3421.6,3.3981093]
[1762905542012,0.002,3421.7,3421.6,3.8654093]
[1762905542207,0.002,3421.7,3421.6,3.89463539]
[1762905542455,0.002,3421.7,3421.6,6.25062594]
[1762905542662,0.002,3421.7,3421.6,6.22139985]
[1762905544370,0.502,3421.7,3421.6,0.4755]
[1762905544668,0.5,3421.5,3421.4,14.5]
[1762905544900,0.5,3421.5,3421.4,14.9755]
[1762905545587,0.5,3421.5,3421.4,15.4428]
[1762905545797,0.5,3421.5,3421.4,18.36558014]
[1762905545957,0.5,3421.5,3421.4,20.49442553]
[1762905546495,0.5,3421.5,3421.4,18.36558014]
[1762905547171,0.5,3421.5,3421.4,14.9755]
[1762905547376,0.5,3421.5,3421.4,15.4428]
[1762905548005,0.5,3421.5,3421.4,18.36558014]